bitfinex/quotes_BTCUSD_20230118
["timestamp","ask_amount","ask_price","bid_price","bid_amount"]
[1674025998986,0.00010585,21269.0,21268.0,3.30669459]
[1674025999261,0.00010585,21269.0,21268.0,3.70230506]
[1674025999541,0.00010585,21269.0,21268.0,3.70249201]
[1674026000323,0.00010585,21269.0,21268.0,3.42121228]
[1674026000590,0.00010585,21269.0,21268.0,3.51421228]
[1674026001124,0.00010585,21269.0,21268.0,3.68299558]
[1674026001380,0.00010585,21269.0,21268.0,3.51421228]
[1674026001654,0.00010585,21269.0,21268.0,3.79549201]
[1674026001910,0.00010585,21269.0,21268.0,3.51421228]
[1674026002210,0.00010585,21269.0,21268.0,3.79549201]
[1674026002996,0.04032243,21269.0,21268.0,3.79549201]
[1674026004545,0.04032243,21269.0,21268.0,3.57045595]
[1674026004810,0.04032243,21269.0,21268.0,3.79554873]
[1674026005340,0.04032243,21269.0,21268.0,3.57045595]
[1674026008485,0.04032243,21269.0,21268.0,3.79548846]
[1674026008924,0.04032243,21269.0,21268.0,2.73573388]
[1674026009469,0.04032243,21269.0,21268.0,2.73578951]
[1674026010016,0.00010585,21269.0,21268.0,2.73578951]
[1674026010532,0.00010585,21269.0,21268.0,2.62288363]
[1674026010788,0.00010585,21269.0,21268.0,2.84818103]
[1674026011072,0.04030351,21269.0,21268.0,2.84818103]
[1674026011391,0.04030351,21269.0,21268.0,2.62288363]
[1674026011657,0.04030351,21269.0,21268.0,2.3416039]
[1674026012176,0.04030351,21269.0,21268.0,2.62499914]
[1674026013506,0.04030351,21269.0,21268.0,2.32499914]
[1674026013808,0.04030351,21269.0,21268.0,2.55038015]
[1674026014115,0.04030351,21269.0,21268.0,2.26868774]
[1674026014384,0.04030351,21269.0,21268.0,2.56868774]
[1674026014649,0.04030351,21269.0,21268.0,2.55038015]
[1674026016265,0.04030351,21269.0,21268.0,2.85038015]
[1674026016535,0.04030351,21269.0,21268.0,2.55038015]
[1674026016810,0.04030351,21269.0,21268.0,2.26868774]
[1674026017070,0.04030351,21269.0,21268.0,2.43774277]
[1674026017846,0.04030351,21269.0,21268.0,2.73774277]
[1674026018178,0.00010585,21269.0,21268.0,2.73774277]
[1674026018699,0.00010585,21269.0,21268.0,2.88850048]
[1674026018968,0.04030072,21269.0,21268.0,2.88850048]
[1674026019260,0.04030072,21269.0,21268.0,2.88853422]
[1674026020088,0.3015318,21269.0,21268.0,2.05995802]
[1674026020359,0.3015318,21269.0,21268.0,1.23944651]
[1674026020360,0.54297885,21269.0,21268.0,1.23944651]
[1674026020657,0.54297885,21269.0,21268.0,0.65653508]
[1674026021172,0.58317372,21269.0,21268.0,0.65653508]
[1674026022465,0.58317372,21269.0,21268.0,0.65792081]
[1674026022471,0.58317372,21269.0,21268.0,0.65653508]
[1674026024039,0.4723997,21269.0,21268.0,0.76925751]
[1674026024293,0.1505267,21269.0,21268.0,1.23944651]
[1674026024838,0.1505267,21269.0,21268.0,1.70963551]
[1674026025116,0.1505267,21269.0,21268.0,1.8786339]
[1674026025368,0.1505267,21269.0,21268.0,2.26779375]
[1674026025901,0.1505267,21269.0,21268.0,2.04234159]
[1674026026215,0.1505267,21269.0,21268.0,2.26765787]
[1674026026470,0.0402267,21269.0,21268.0,2.26765787]
[1674026026713,0.0402267,21269.0,21268.0,1.77935287]
[1674026026983,0.0402267,21269.0,21268.0,2.19201338]
[1674026027248,0.0402267,21269.0,21268.0,2.41732966]
[1674026028025,0.0402267,21269.0,21268.0,2.11788858]
[1674026028274,0.0402267,21269.0,21268.0,2.00523132]
[1674026028542,0.0402267,21269.0,21268.0,1.8925723]
[1674026028832,0.0402267,21269.0,21268.0,2.11789001]
[1674026029307,0.0402267,21269.0,21268.0,2.41789001]
[1674026029842,0.0402267,21269.0,21268.0,2.11789001]
[1674026030127,3.183e-05,21269.0,21268.0,2.41789001]
[1674026031057,0.04096789,21269.0,21268.0,2.41789001]
[1674026031307,0.04096789,21269.0,21268.0,2.24889162]
[1674026031559,0.04096789,21269.0,21268.0,2.41787524]
[1674026032065,3.183e-05,21269.0,21268.0,2.41787524]
[1674026032568,3.183e-05,21269.0,21268.0,2.69956765]
[1674026033075,0.04542731,21269.0,21268.0,2.69956765]
[1674026033329,0.04542731,21269.0,21268.0,2.11787524]
[1674026033603,0.04542731,21269.0,21268.0,2.58685945]
[1674026033907,3.183e-05,21269.0,21268.0,2.28685945]
[1674026034096,3.183e-05,21269.0,21268.0,2.45585656]
[1674026034342,3.183e-05,21269.0,21268.0,2.23053885]
[1674026034602,3.183e-05,21269.0,21268.0,2.75586858]
[1674026034864,3.183e-05,21269.0,21268.0,2.45586858]
[1674026035178,0.04460926,21269.0,21268.0,2.45586858]
[1674026035357,0.04460926,21269.0,21268.0,2.75586858]
[1674026036121,0.04460926,21269.0,21268.0,3.03756099]
[1674026036620,0.04460926,21269.0,21268.0,1.24093692]
[1674026038147,0.04460926,21269.0,21268.0,1.39093692]
[1674026038442,0.04460926,21269.0,21268.0,0.30055892]
[1674026038707,0.04460926,21269.0,21268.0,1.24093692]
[1674026039493,0.00282125,21269.0,21268.0,1.39093692]
[1674026039746,0.00282125,21269.0,21268.0,1.24093692]
[1674026040321,0.00282125,21269.0,21268.0,2.01956623]
[1674026040602,0.00282125,21269.0,21268.0,2.3576122]
[1674026041112,0.00282125,21269.0,21268.0,2.01956623]
[1674026041399,0.00282125,21269.0,21268.0,1.71112592]
[1674026041990,0.00282125,21269.0,21268.0,2.04917054]
[1674026044267,0.00282125,21269.0,21268.0,2.83473141]
[1674026044785,0.00282125,21269.0,21268.0,2.52637223]
[1674026045296,0.00282125,21269.0,21268.0,2.83474647]
[1674026047369,0.0001941,21269.0,21268.0,3.20281982]
[1674026047631,0.0001941,21269.0,21268.0,4.42601933]
[1674026047891,0.0001941,21269.0,21268.0,4.4260672]
[1674026048188,0.0001941,21269.0,21268.0,3.60777323]
[1674026048660,0.0001941,21269.0,21268.0,3.23969988]
[1674026048930,0.0001941,21269.0,21268.0,2.76419943]
[1674026049202,0.0081941,21269.0,21268.0,3.27047477]
[1674026049512,0.0001941,21269.0,21268.0,3.26347477]
[1674026049709,0.00482268,21270.0,21269.0,0.15]
[1674026049968,0.00482268,21270.0,21269.0,2.86218905]
[1674026050232,0.00482268,21270.0,21269.0,3.60276572]
[1674026051009,0.00496322,21271.0,21269.0,3.55746874]
[1674026051276,0.00496322,21271.0,21270.0,1.52671547]
[1674026051530,0.00496322,21271.0,21270.0,2.60895428]
[1674026051796,0.00496322,21271.0,21270.0,2.64745186]
[1674026052046,0.00496322,21271.0,21270.0,2.97621661]
[1674026052295,0.00496322,21271.0,21270.0,2.86551661]
[1674026052560,2.2e-07,21271.0,21270.0,2.99794589]
[1674026052841,2.2e-07,21271.0,21270.0,3.10864589]
[1674026053120,0.00800022,21271.0,21270.0,3.11564589]
[1674026053904,0.00800022,21271.0,21270.0,3.45272996]
[1674026054166,0.00800022,21271.0,21270.0,3.34222996]
[1674026054425,0.00800022,21271.0,21270.0,3.00622515]
[1674026054712,0.00800022,21271.0,21270.0,2.67638114]
[1674026054933,0.04189981,21271.0,21270.0,2.67638114]
[1674026055196,0.04189981,21271.0,21270.0,3.34331115]
[1674026056041,0.00800022,21271.0,21270.0,3.00622708]
[1674026056268,0.00800022,21271.0,21270.0,3.34331115]
[1674026057060,2.2e-07,21271.0,21270.0,3.34331115]
[1674026057573,0.00127807,21272.0,21271.0,0.15]
[1674026057824,0.00127807,21272.0,21271.0,2.52496693]
[1674026058080,0.00127807,21272.0,21271.0,2.80569108]
[1674026058352,0.00127807,21272.0,21271.0,3.04075108]
[1674026058606,0.00127807,21272.0,21271.0,2.89214107]
[1674026059148,0.00127807,21272.0,21271.0,2.76002693]
[1674026059414,0.00127807,21272.0,21271.0,2.90626994]
[1674026059683,0.00368085,21274.0,21272.0,0.29067927]
[1674026059928,0.00368085,21274.0,21273.0,3.59714825]
[1674026060218,0.00368085,21274.0,21273.0,3.59711828]
[1674026060723,0.00368085,21274.0,21273.0,3.37260049]
[1674026060992,0.00368085,21274.0,21273.0,3.06416276]
[1674026061322,0.01068085,21274.0,21273.0,3.19042398]
[1674026062284,0.01068085,21274.0,21273.0,3.07816276]
[1674026062537,0.01068085,21274.0,21273.0,3.38641482]
[1674026062796,0.01068085,21274.0,21273.0,3.30112693]
[1674026063338,0.01068085,21274.0,21273.0,2.89448186]
[1674026065276,0.01068085,21274.0,21273.0,3.0628702]
[1674026065984,0.01068085,21274.0,21273.0,2.89448186]
[1674026066270,0.01068085,21274.0,21273.0,3.0628702]
[1674026066533,0.01068085,21274.0,21273.0,2.89448186]
[1674026067283,0.01068085,21274.0,21273.0,3.0628702]
[1674026068325,0.01068085,21274.0,21273.0,2.89448186]
[1674026069351,0.01068085,21274.0,21273.0,2.194316]
[1674026069636,0.01068085,21274.0,21273.0,1.424237]
[1674026069891,0.01068085,21274.0,21273.0,1.724237]
[1674026070667,0.33255385,21274.0,21273.0,1.724237]
[1674026071790,0.01068085,21274.0,21273.0,1.724237]
[1674026072324,0.33255385,21274.0,21273.0,1.724237]
[1674026073149,0.33255385,21274.0,21273.0,1.7248509]
[1674026073406,0.33255385,21274.0,21273.0,1.4248509]
[1674026073649,0.33255385,21274.0,21273.0,1.7248509]
[1674026074202,0.33255385,21274.0,21273.0,1.4248509]
[1674026075818,0.33255385,21274.0,21273.0,1.7248509]
[1674026076073,0.01068085,21274.0,21273.0,1.83730333]
[1674026076332,0.01068085,21274.0,21273.0,1.7248509]
[1674026076591,0.01068085,21274.0,21273.0,2.11440476]
[1674026076882,0.01068085,21274.0,21273.0,2.3390741]
[1674026077831,0.01068085,21274.0,21273.0,2.11440476]
[1674026078099,0.01068085,21274.0,21273.0,2.3390741]
[1674026078349,0.01068085,21274.0,21273.0,2.17045094]
[1674026078858,0.01068085,21274.0,21273.0,2.45148739]
[1674026079107,0.01068085,21274.0,21273.0,2.17045094]
[1674026079367,0.01068085,21274.0,21273.0,3.39876808]
[1674026080114,0.01068085,21274.0,21273.0,3.17409874]
[1674026080996,0.01061682,21274.0,21273.0,3.17409874]
[1674026081684,0.00322272,21274.0,21273.0,3.17409874]
[1674026081939,0.00322272,21274.0,21273.0,3.28459874]
[1674026082463,0.00322272,21274.0,21273.0,3.32516397]
[1674026082715,0.00513619,21275.0,21274.0,0.13000127]
[1674026082967,0.00513619,21275.0,21274.0,1.72239594]
[1674026083237,0.00513619,21275.0,21274.0,2.02239594]
[1674026083477,0.00513619,21275.0,21274.0,2.4996763]
[1674026084760,0.01213619,21275.0,21274.0,2.5196763]
[1674026084987,0.01213619,21275.0,21274.0,2.74482298]
[1674026085493,0.01213619,21275.0,21274.0,2.5196763]
[1674026085747,0.01035382,21278.0,21274.0,2.5196763]
[1674026085748,0.00744933,21278.0,21274.0,2.5196763]
[1674026085997,0.00744933,21278.0,21276.0,0.11261858]
[1674026086247,0.47642753,21279.0,21277.0,0.939982]
[1674026086494,0.11552753,21279.0,21277.0,0.939982]
[1674026087014,0.03838152,21278.0,21277.0,0.939982]
[1674026087326,0.03838152,21278.0,21277.0,0.942982]
[1674026088062,0.11552753,21279.0,21277.0,0.939982]
[1674026088819,0.065,21278.0,21277.0,0.942982]
[1674026089081,0.10190824,21278.0,21277.0,0.942982]
[1674026089340,0.32320824,21278.0,21277.0,0.942982]
[1674026089602,0.58008124,21278.0,21277.0,0.942982]
[1674026089849,0.58008124,21278.0,21277.0,0.939982]
[1674026090106,0.64508124,21278.0,21277.0,0.942982]
[1674026090625,0.32320824,21278.0,21277.0,0.942982]
[1674026090898,0.64508124,21278.0,21277.0,0.942982]
[1674026092122,0.32320824,21278.0,21277.0,0.942982]
[1674026092378,0.64508124,21278.0,21277.0,0.942982]
[1674026092637,0.53438124,21278.0,21277.0,0.942982]
[1674026092904,0.21250824,21278.0,21277.0,0.942982]
[1674026095458,0.21250824,21278.0,21277.0,1.05560058]
[1674026096991,0.21250824,21278.0,21277.0,0.942982]
[1674026100370,0.53438124,21278.0,21277.0,0.942982]
[1674026100635,0.21250824,21278.0,21277.0,0.942982]
[1674026100896,0.53438124,21278.0,21277.0,0.942982]
[1674026101655,0.64498124,21278.0,21277.0,0.472991]
[1674026107002,0.21250824,21278.0,21277.0,1.35560058]
[1674026107265,0.21250824,21278.0,21277.0,1.05560058]
[1674026111845,0.01212261,21283.0,21277.0,3.26860218]
[1674026112286,0.01212261,21283.0,21280.0,0.11262011]
[1674026112287,0.01212261,21283.0,21281.0,0.11262011]
[1674026112544,0.01212261,21283.0,21282.0,0.90624393]
[1674026112802,0.01212261,21283.0,21282.0,2.28258819]
[1674026113109,0.01212261,21283.0,21282.0,2.54771632]
[1674026113438,0.01212261,21283.0,21282.0,2.86615354]
[1674026114160,0.01212261,21283.0,21282.0,2.42721828]
[1674026114438,0.01212261,21283.0,21282.0,2.07358706]
[1674026115215,0.01212261,21283.0,21282.0,2.43469787]
[1674026115474,0.01212261,21283.0,21282.0,2.65993808]
[1674026115742,0.01212261,21283.0,21282.0,2.43469787]
[1674026116029,0.01212261,21283.0,21282.0,2.16547945]
[1674026117061,0.01212261,21283.0,21282.0,2.05313931]
[1674026117542,0.01212261,21283.0,21282.0,1.94243931]
[1674026117764,0.01212261,21283.0,21282.0,1.94310267]
[1674026122132,0.01212261,21283.0,21282.0,1.46590098]
[1674026124946,1.22101863,21288.0,21282.0,1.46590098]
[1674026124947,0.01526959,21292.0,21283.0,0.15]
[1674026125214,0.01526959,21292.0,21289.0,0.23485]
[1674026125468,0.01526959,21292.0,21290.0,0.81207356]
[1674026125724,0.01526959,21292.0,21291.0,0.51207356]
[1674026126298,0.01526959,21292.0,21291.0,1.41656569]
[1674026128324,0.01526959,21292.0,21291.0,1.50856569]
[1674026129394,0.20599554,21292.0,21291.0,1.031364]
[1674026129648,1.05428467,21292.0,21291.0,0.092]
[1674026131266,1.05428467,21292.0,21288.0,0.46973]
[1674026131549,0.81343762,21292.0,21291.0,0.081]
[1674026131810,0.55954259,21292.0,21291.0,0.081]
[1674026132926,0.55854259,21292.0,21289.0,0.62013967]
[1674026133178,0.1107,21290.0,21289.0,0.62013967]
[1674026133448,0.432573,21290.0,21289.0,0.62013967]
[1674026133975,0.1107,21290.0,21289.0,0.62013967]
[1674026134258,0.1107,21290.0,21289.0,0.70513967]
[1674026134518,0.432573,21290.0,21289.0,0.62013967]
[1674026134769,0.432573,21290.0,21289.0,1.17486567]
[1674026134770,0.1117,21290.0,21289.0,1.17486567]
[1674026135025,0.433573,21290.0,21289.0,1.17486567]
[1674026135284,0.1117,21290.0,21289.0,1.47486567]
[1674026135549,0.1117,21290.0,21289.0,1.17486567]
[1674026136176,0.433573,21290.0,21289.0,1.17486567]
[1674026137729,0.1117,21290.0,21289.0,1.17486567]
[1674026137990,0.433573,21290.0,21289.0,1.17486567]
[1674026138507,0.1117,21290.0,21289.0,1.17486567]
[1674026138766,0.433573,21290.0,21289.0,1.17486567]
[1674026139639,0.1117,21290.0,21289.0,1.17486567]
[1674026139870,0.433573,21290.0,21289.0,1.024448]
[1674026140131,0.654973,21290.0,21289.0,0.554722]
[1674026140405,1.67389871,21290.0,21289.0,0.085]
[1674026141209,1.00999871,21290.0,21289.0,0.085]
[1674026141467,0.89929871,21290.0,21289.0,0.085]
[1674026142030,1.00939871,21290.0,21289.0,0.085]
[1674026144165,0.89929871,21290.0,21289.0,0.085]
[1674026144450,1.00999871,21290.0,21289.0,0.085]
[1674026144712,1.15999871,21290.0,21289.0,0.085]
[1674026145785,0.97599871,21290.0,21287.0,0.11209853]
[1674026146048,0.321873,21289.0,21287.0,0.11209853]
[1674026146348,0.321873,21288.0,21287.0,0.11209853]
[1674026147337,0.321873,21288.0,21287.0,0.11809853]
[1674026148606,0.471773,21288.0,21287.0,0.11209853]
[1674026148864,0.471773,21288.0,21287.0,0.12909853]
[1674026151110,0.396673,21288.0,21287.0,0.12909853]
[1674026152667,0.84274201,21288.0,21287.0,0.12909853]
[1674026152927,0.84274201,21288.0,21287.0,0.12902021]
[1674026153196,1.31249001,21288.0,21287.0,0.12902021]
[1674026154866,1.30249001,21288.0,21287.0,0.12902021]
[1674026155153,1.45249001,21288.0,21287.0,0.12902021]
[1674026156760,1.92223801,21288.0,21287.0,0.12902021]
[1674026157054,2.53882549,21288.0,21287.0,0.12902021]
[1674026157275,2.65125691,21288.0,21287.0,0.12902021]
[1674026158170,2.53882549,21288.0,21287.0,0.12902021]
[1674026158434,2.53882549,21288.0,21287.0,0.11202021]
[1674026158951,2.55282549,21288.0,21287.0,0.11902021]
[1674026159275,3.01545843,21288.0,21287.0,0.11902021]
[1674026159277,3.02395843,21288.0,21287.0,0.11902021]
[1674026159523,3.13638985,21288.0,21287.0,0.11902021]
[1674026159796,2.67375691,21288.0,21287.0,0.11902021]
[1674026160051,2.56132549,21288.0,21287.0,0.11902021]
[1674026160561,2.67375691,21288.0,21287.0,0.11902021]
[1674026162346,2.72996804,21288.0,21287.0,0.11902021]
[1674026162591,3.12787248,21288.0,21287.0,0.11902021]
[1674026163102,2.34264245,21288.0,21287.0,0.11902021]
[1674026163354,2.23043801,21288.0,21287.0,0.11902021]
[1674026163861,1.78693801,21288.0,21287.0,0.11902021]
[1674026167623,1.78693801,21288.0,21285.0,0.06243414]
[1674026167905,0.396973,21287.0,21285.0,0.06243414]
[1674026168143,0.321875,21286.0,21285.0,0.06243414]
[1674026168884,0.73420209,21286.0,21285.0,0.06243414]
[1674026169385,0.73420209,21286.0,21285.0,0.06843414]
[1674026169631,0.75420209,21286.0,21285.0,0.06843414]
[1674026174149,0.9460892,21286.0,21285.0,0.06843414]
[1674026174392,1.4158812,21286.0,21285.0,0.06843414]
[1674026174895,1.9607732,21286.0,21285.0,0.06843414]
[1674026175146,2.44757764,21286.0,21285.0,0.06843414]
[1674026176443,2.62472019,21286.0,21285.0,0.06843414]
[1674026176878,2.45607764,21286.0,21285.0,0.06843414]
[1674026177131,2.62472019,21286.0,21285.0,0.06843414]
[1674026177383,2.45607764,21286.0,21285.0,0.06843414]
[1674026177628,2.62472019,21286.0,21285.0,0.06843414]
[1674026179973,2.73738508,21286.0,21285.0,0.06843414]
[1674026180241,2.51251575,21286.0,21285.0,0.06843414]
[1674026180467,2.73738508,21286.0,21285.0,0.06843414]
[1674026181218,4.14713183,21286.0,21285.0,0.06843414]
[1674026181475,3.20717708,21286.0,21285.0,0.06843414]
[1674026181963,4.1470579,21286.0,21285.0,0.06843414]
[1674026182957,4.33233467,21286.0,21285.0,0.06843414]
[1674026183695,4.3885279,21286.0,21285.0,0.06843414]
[1674026184439,4.09009709,21286.0,21285.0,0.06843414]
[1674026184688,4.13712614,21286.0,21285.0,0.06843414]
[1674026187162,3.94523903,21286.0,21285.0,0.06843414]
[1674026187406,4.45092086,21286.0,21285.0,0.06843414]
[1674026188134,4.45095644,21286.0,21285.0,0.06843414]
[1674026188411,3.81618318,21286.0,21285.0,0.06843414]
[1674026189437,4.45083284,21286.0,21285.0,0.06843414]
[1674026189704,4.92493501,21286.0,21285.0,0.06843414]
[1674026190234,3.0182899,21286.0,21285.0,0.06843414]
[1674026190496,1.79734296,21286.0,21285.0,0.06843414]
[1674026190823,1.20662584,21286.0,21285.0,0.06843414]
[1674026192347,1.31905096,21286.0,21285.0,0.06843414]
[1674026192627,1.20662584,21286.0,21285.0,0.06843414]
[1674026193939,1.31905096,21286.0,21285.0,0.06843414]
[1674026194450,1.20662584,21286.0,21285.0,0.06843414]
[1674026195550,0.73683384,21286.0,21285.0,0.06843414]
[1674026200593,0.84925896,21286.0,21285.0,0.06843414]
[1674026200847,0.73683384,21286.0,21285.0,0.06843414]
[1674026203446,1.20662584,21286.0,21283.0,0.13545897]
[1674026203796,0.321875,21285.0,21283.0,0.13545897]
[1674026203967,0.321875,21285.0,21283.0,0.60530897]
[1674026204226,0.41495884,21286.0,21283.0,0.60530897]
[1674026204457,0.41495884,21286.0,21283.0,1.18503884]
[1674026204715,0.41495884,21286.0,21284.0,0.00021873]
[1674026204984,0.026,21286.0,21285.0,0.469814]
[1674026205238,0.026,21286.0,21285.0,0.544914]
[1674026205540,0.026,21286.0,21285.0,1.089328]
[1674026206648,0.026,21286.0,21285.0,1.099337]
[1674026206904,0.026,21286.0,21285.0,1.249337]
[1674026207191,0.46351047,21289.0,21285.0,1.249337]
[1674026207445,0.024,21286.0,21285.0,1.51913847]
[1674026207719,0.46351047,21289.0,21285.0,1.089128]
[1674026207984,0.46351047,21289.0,21287.0,0.0751]
[1674026208253,0.46351047,21289.0,21287.0,1.014619]
[1674026208548,0.321875,21288.0,21287.0,1.014619]
[1674026209094,0.46351047,21289.0,21287.0,1.01525998]
[1674026209348,0.321875,21288.0,21287.0,1.08425998]
[1674026209856,0.46551047,21289.0,21287.0,1.08425998]
[1674026210666,0.321875,21288.0,21287.0,1.08425998]
[1674026210936,0.76600148,21292.0,21287.0,1.01525998]
[1674026211228,0.002,21288.0,21287.0,1.39829858]
[1674026211486,0.321875,21288.0,21287.0,1.01525998]
[1674026211774,0.002,21289.0,21287.0,1.08425998]
[1674026212042,1.0063619,21292.0,21287.0,1.01525998]
[1674026212306,1.1563619,21292.0,21287.0,1.32929858]
[1674026212597,0.321875,21291.0,21288.0,0.0751]
[1674026212850,0.321875,21290.0,21288.0,0.544838]
[1674026213109,0.321875,21289.0,21288.0,0.544838]
[1674026213904,0.44825778,21292.0,21288.0,1.014586]
[1674026214164,0.321875,21291.0,21288.0,1.014586]
[1674026214450,0.024,21291.0,21289.0,0.19531606]
[1674026214713,0.024,21291.0,21289.0,1.13474106]
[1674026214975,0.01326959,21292.0,21289.0,1.13474106]
[1674026215262,2.44920533,21294.0,21289.0,1.13474106]
[1674026215523,0.941518,21293.0,21289.0,0.66503606]
[1674026215776,0.80321331,21292.0,21289.0,0.66503606]
[1674026216040,0.321875,21291.0,21289.0,0.67303606]
[1674026216318,0.321875,21290.0,21289.0,0.67303606]
[1674026216851,0.48133831,21292.0,21289.0,0.67303606]
[1674026217300,0.48133831,21292.0,21289.0,1.13476206]
[1674026217301,0.48133831,21292.0,21289.0,1.14276206]
[1674026217554,0.321875,21291.0,21289.0,1.13476206]
[1674026217814,0.321875,21290.0,21289.0,1.13476206]
[1674026218077,0.321875,21290.0,21289.0,1.14176206]
[1674026218387,0.48133831,21292.0,21289.0,1.13540298]
[1674026218585,0.48133831,21292.0,21289.0,1.14340298]
[1674026218848,0.321875,21291.0,21289.0,1.13540298]
[1674026219165,0.321875,21290.0,21289.0,1.13540298]
[1674026219387,0.48133831,21292.0,21289.0,1.14240298]
[1674026219653,0.48133831,21292.0,21289.0,1.13540298]
[1674026219908,0.48133831,21292.0,21289.0,1.14340298]
[1674026219909,0.321875,21291.0,21289.0,1.14340298]
[1674026220172,0.48133831,21292.0,21289.0,1.14340298]
[1674026220680,0.321875,21291.0,21289.0,1.14340298]
[1674026220974,0.321875,21290.0,21289.0,1.13540298]
[1674026221196,0.48133831,21292.0,21289.0,1.14340298]
[1674026221446,0.48133831,21292.0,21289.0,1.13540298]
[1674026221730,0.321875,21291.0,21289.0,1.14340298]
[1674026221955,0.321875,21290.0,21289.0,1.14340298]
[1674026222261,0.48133831,21292.0,21289.0,1.14340298]
[1674026222738,0.48133831,21292.0,21289.0,1.13540298]
[1674026223015,1.40961401,21294.0,21291.0,0.0751]
[1674026223290,1.40961401,21294.0,21292.0,0.00023978]
[1674026223576,0.321875,21293.0,21291.0,0.57964687]
[1674026223828,0.321875,21292.0,21291.0,0.544775]
[1674026224347,1.40961401,21294.0,21291.0,0.544775]
[1674026224603,1.40961401,21294.0,21291.0,0.1761]
[1674026224888,0.72838918,21293.0,21291.0,0.075]
[1674026225149,0.329875,21292.0,21291.0,0.082]
[1674026225413,0.321875,21292.0,21291.0,0.075]
[1674026225709,0.321875,21292.0,21291.0,0.007]
[1674026226291,0.321875,21292.0,21290.0,0.469685]
[1674026226547,0.41451418,21293.0,21290.0,0.469685]
[1674026226791,0.329875,21292.0,21291.0,0.007]
[1674026227067,0.321875,21292.0,21290.0,0.469685]
[1674026227351,0.321875,21291.0,21290.0,0.476685]
[1674026227620,0.321875,21291.0,21290.0,0.47685016]
[1674026227876,0.008,21292.0,21290.0,0.47685016]
[1674026228142,0.40651418,21293.0,21290.0,0.46985016]
[1674026228419,0.321875,21292.0,21290.0,0.46985016]
[1674026228689,0.321875,21291.0,21290.0,0.46985016]
[1674026229221,0.321875,21291.0,21290.0,0.469685]
[1674026229471,0.321875,21291.0,21290.0,0.46985016]
[1674026229745,0.03787541,21292.0,21290.0,0.46985016]
[1674026229995,0.04587541,21292.0,21290.0,0.47685016]
[1674026230279,0.321875,21291.0,21290.0,0.46985016]
[1674026230504,0.329875,21291.0,21290.0,0.47685016]
[1674026231039,0.008,21291.0,21290.0,0.47685016]
[1674026231552,0.008,21291.0,21290.0,0.21814938]
[1674026232330,0.03787541,21292.0,21290.0,0.21114938]
[1674026232576,0.04587541,21292.0,21290.0,0.21814938]
[1674026233091,0.03787541,21292.0,21290.0,0.21114938]
[1674026233350,0.008,21291.0,21290.0,0.21814938]
[1674026233615,0.03787541,21292.0,21290.0,0.21114938]
[1674026233879,0.04587541,21292.0,21290.0,0.21814938]
[1674026234696,0.321875,21291.0,21290.0,0.21798422]
[1674026235225,0.008,21292.0,21290.0,0.007]
[1674026235744,0.321875,21291.0,21290.0,0.007]
[1674026235969,0.321875,21291.0,21289.0,1.01422]
[1674026236211,0.40651418,21293.0,21289.0,1.014236]
[1674026236467,0.008,21291.0,21290.0,0.007]
[1674026236708,0.008,21291.0,21290.0,0.476699]
[1674026237220,0.40651418,21293.0,21290.0,0.47009199]
[1674026237481,0.41451418,21293.0,21290.0,0.47009199]
[1674026237754,0.321875,21292.0,21290.0,0.47009199]
[1674026238059,0.008,21291.0,21290.0,0.47709199]
[1674026238280,0.008,21291.0,21290.0,0.94679599]
[1674026239083,0.008,21291.0,21290.0,1.06244945]
[1674026239358,1.40961401,21294.0,21290.0,1.36553745]
[1674026239620,0.008,21293.0,21291.0,0.0751]
[1674026239835,1.40961401,21294.0,21292.0,1.024401]
[1674026240138,1.40961401,21294.0,21293.0,0.07504745]
[1674026240404,1.40961401,21294.0,21293.0,1.01432145]
[1674026240679,1.41761401,21294.0,21293.0,1.01432145]
[1674026240924,1.40961401,21294.0,21293.0,1.01432145]
[1674026242008,1.44755358,21294.0,21293.0,1.01432145]
[1674026242936,1.47555358,21294.0,21293.0,1.01532145]
[1674026245554,1.47555358,21294.0,21293.0,0.940274]
[1674026245830,1.79742858,21294.0,21293.0,0.470637]
[1674026246344,2.22439728,21294.0,21293.0,0.001]
[1674026247654,2.69401228,21294.0,21293.0,0.001]
[1674026248963,2.22439728,21294.0,21293.0,0.001]
[1674026250540,3.16362728,21294.0,21293.0,0.001]
[1674026250783,3.60457021,21294.0,21293.0,0.001]
[1674026251040,3.2760524,21294.0,21293.0,1.00002021]
[1674026251301,2.8490837,21294.0,21293.0,1.00002021]
[1674026251559,2.90528635,21294.0,21293.0,1.00002021]
[1674026252059,4.58084935,21294.0,21293.0,1.00002021]
[1674026252347,4.68113467,21294.0,21293.0,1.00002021]
[1674026252593,4.51241044,21294.0,21293.0,1.00002021]
[1674026253363,4.59574346,21294.0,21293.0,1.00002021]
[1674026254364,5.71930999,21294.0,21293.0,1.00002021]
[1674026254875,5.8144227,21294.0,21293.0,1.00002021]
[1674026256410,5.8144227,21294.0,21293.0,2.00002021]
[1674026257431,5.34032053,21294.0,21293.0,2.00002021]
[1674026258488,5.41542053,21294.0,21293.0,2.00002021]
[1674026260324,5.20959219,21294.0,21293.0,2.00002021]
[1674026260590,0.17099,21293.0,21285.0,0.469794]
[1674026260894,0.1124991,21288.0,21282.0,0.61877001]
[1674026261128,0.96125766,21287.0,21284.0,0.14798906]
[1674026261408,0.51260095,21286.0,21284.0,0.14798906]
[1674026261656,0.19072595,21286.0,21284.0,0.14798906]
[1674026261915,0.321875,21285.0,21284.0,0.14798906]
[1674026262957,0.321875,21285.0,21282.0,0.469864]
[1674026263210,0.24,21286.0,21282.0,0.469864]
[1674026263211,0.321875,21284.0,21282.0,0.469864]
[1674026263475,0.321875,21283.0,21282.0,0.469864]
[1674026263737,0.39112595,21286.0,21283.0,0.11859976]
[1674026264054,0.2004,21286.0,21283.0,0.15347163]
[1674026264278,0.321875,21285.0,21283.0,0.11859976]
[1674026264538,0.321875,21284.0,21283.0,0.58845776]
[1674026265048,0.03544363,21284.0,21283.0,0.58845776]
[1674026265359,0.35731863,21284.0,21283.0,0.58845776]
[1674026266104,0.321875,21284.0,21283.0,0.11859976]
[1674026267125,0.331875,21284.0,21283.0,0.11859976]
[1674026267413,0.01,21284.0,21283.0,0.11859976]
[1674026267660,0.331875,21284.0,21283.0,0.11859976]
[1674026267928,0.331875,21284.0,21283.0,0.11871968]
[1674026268169,0.01,21284.0,21283.0,0.11859976]
[1674026268438,0.01,21284.0,21283.0,0.58845776]
[1674026271321,0.01,21284.0,21283.0,0.62332963]
[1674026271580,0.01,21284.0,21283.0,1.61992945]
[1674026272122,0.01,21284.0,21283.0,1.54552945]
[1674026272657,0.01,21284.0,21283.0,1.84552945]
[1674026273434,0.01,21284.0,21283.0,2.84552945]
[1674026276104,0.01,21284.0,21283.0,2.54552945]
[1674026276592,0.01,21284.0,21283.0,2.06832776]